bitfinex/quotes_SOLUSD_20240926
["timestamp","ask_amount","ask_price","bid_price","bid_amount"]
[1727362198736,48.5751,155.37,155.28,35.08309953]
[1727362198919,6.4383,155.32,155.28,41.52299953]
[1727362199122,6.438,155.33,155.28,42.8107892]
[1727362199320,6.438,155.33,155.29,6.4394]
[1727362199643,6.4378,155.34,155.3,7.72683553]
[1727362200047,48.5751,155.37,155.31,41.52139953]
[1727362200048,6.4369,155.36,155.31,41.52139953]
[1727362200250,6.4373,155.35,155.31,41.52139953]
[1727362200536,0.291383,155.39,155.34,35.08309953]
[1727362200710,0.291383,155.39,155.35,1.28724543]
[1727362201334,0.291383,155.39,155.38,6.4358]
[1727362201522,0.291383,155.39,155.37,35.08309953]
[1727362201820,6.436,155.38,155.35,20.0]
[1727362202023,0.291383,155.39,155.35,27.72417316]
[1727362202347,0.291383,155.39,155.36,6.4366]
[1727362202525,0.291383,155.39,155.37,35.08309953]
[1727362202735,0.291383,155.39,155.38,7.7228996]
[1727362202931,0.0758817,155.43,155.39,16.0882]
[1727362203251,0.0758817,155.43,155.39,57.60669953]
[1727362203946,0.0758817,155.43,155.39,51.17129953]
[1727362204149,6.5096817,155.43,155.39,51.17129953]
[1727362204449,6.5096817,155.43,155.39,16.0882]
[1727362205147,6.5096817,155.43,155.39,23.81048942]
[1727362205455,6.5096817,155.43,155.39,22.5236]
[1727362205938,0.0758817,155.43,155.4,1.28684137]
[1727362206259,0.0758817,155.43,155.4,43.776884]
[1727362206473,0.0758817,155.43,155.42,6.4341]
[1727362206826,0.0758817,155.43,155.4,20.0]
[1727362207335,6.5095817,155.43,155.4,20.0]
[1727362207536,6.5095817,155.43,155.34,44.1928]
[1727362207537,6.4342,155.42,155.37,6.4362]
[1727362207746,6.4342,155.42,155.37,50.213084]
[1727362207947,6.5096817,155.43,155.38,7.72266643]
[1727362208158,0.0758817,155.43,155.38,1.28686643]
[1727362208340,0.0758817,155.43,155.4,6.435]
[1727362208539,0.0758817,155.43,155.41,1.28670809]
[1727362208870,0.0758817,155.43,155.42,41.51719953]
[1727362209034,0.5861626,155.48,155.42,41.51719953]
[1727362209035,0.5861626,155.48,155.45,34.08309953]
[1727362209352,0.5861626,155.48,155.44,16.0823]
[1727362209649,7.0179626,155.48,155.44,16.0823]
[1727362209832,7.0179626,155.48,155.43,6.4337]
[1727362210348,6.4321,155.47,155.43,20.0]
[1727362210644,6.4321,155.47,155.43,21.28650664]
[1727362211227,6.4321,155.47,155.43,27.72020664]
[1727362212033,0.5861626,155.48,155.41,16.086]
[1727362212340,6.433,155.45,155.41,16.086]
[1727362213039,0.5861626,155.48,155.4,20.0]
[1727362213236,6.4334,155.44,155.39,41.51839953]
[1727362213440,44.027864,155.45,155.35,16.0921]
[1727362213641,16.0855,155.42,155.33,35.08309953]
[1727362213834,6.4353,155.4,155.35,6.4369]
[1727362214351,6.4353,155.4,155.36,6.4365]
[1727362214553,6.4353,155.4,155.36,41.51959953]
[1727362215437,6.4357,155.39,155.36,20.0]
[1727362215850,6.4363,155.37,155.32,6.4382]
[1727362216159,6.4358,155.39,155.33,6.4378]
[1727362216323,39.986974,155.43,155.33,51.17689953]
[1727362216657,6.4367,155.36,155.31,6.4386]
[1727362216846,32.5884,155.39,155.27,35.08309953]
[1727362217037,6.4374,155.34,155.27,51.18369953]
[1727362217356,6.4379,155.33,155.27,51.18369953]
[1727362217740,0.25098,155.38,155.27,51.18369953]
[1727362217950,6.4375,155.34,155.29,6.4395]
[1727362218137,6.4375,155.34,155.3,20.0]
[1727362218332,12.7183,155.37,155.27,51.18369953]
[1727362218553,0.25098,155.36,155.27,57.62399953]
[1727362218758,28.8096,155.37,155.27,57.62399953]
[1727362218759,6.4379,155.33,155.28,7.72732865]
[1727362219759,28.8096,155.37,155.28,7.72732865]
[1727362219760,12.7183,155.37,155.29,20.0]
[1727362219938,12.7183,155.37,155.28,1.28772865]
[1727362219939,6.4363,155.37,155.33,6.4378]
[1727362220136,39.0238,155.39,155.35,6.4369]
[1727362220366,39.0238,155.39,155.34,1.28731073]
[1727362220367,6.4354,155.39,155.34,7.72471073]
[1727362220663,0.221437,155.4,155.36,35.08309953]
[1727362220842,6.656437,155.4,155.37,1.28702397]
[1727362221158,6.656437,155.4,155.36,35.08309953]
[1727362221159,6.4358,155.38,155.36,35.08309953]
[1727362221372,6.4358,155.38,155.35,20.0]
[1727362221536,6.4358,155.38,155.35,21.28718836]
[1727362221969,0.221437,155.4,155.37,6.4361]
[1727362222460,0.221437,155.4,155.39,6.4354]
[1727362222662,0.221437,155.4,155.39,35.08309953]
[1727362223459,0.221437,155.4,155.36,74.95098353]
[1727362223770,0.221437,155.4,155.37,6.4361]
[1727362223949,0.221437,155.4,155.38,1.28693367]
[1727362224349,0.221437,155.4,155.38,7.72273367]
[1727362225060,6.656537,155.4,155.38,1.28693367]
[1727362225364,0.221437,155.4,155.37,6.4361]
[1727362225747,13.1120445,155.46,155.37,6.4361]
[1727362225748,0.2956445,155.46,155.4,23.776884]
[1727362225947,6.4333,155.45,155.4,6.4348]
[1727362226149,0.2956445,155.46,155.39,41.51829953]
[1727362226358,6.4339,155.43,155.39,41.51829953]
[1727362226542,6.4339,155.43,155.39,35.08309953]
[1727362226740,0.2956445,155.46,155.37,16.0901]
[1727362227048,0.2956445,155.46,155.37,22.526]
[1727362227049,6.4345,155.42,155.37,22.526]
[1727362227253,6.4349,155.41,155.37,16.0901]
[1727362227452,6.4349,155.41,155.37,22.5262]
[1727362228434,16.0839,155.44,155.36,35.08309953]
[1727362228639,6.4351,155.4,155.35,6.4367]
[1727362228862,6.4354,155.39,155.34,22.5308]
[1727362229368,6.4358,155.38,155.34,22.5308]
[1727362229659,12.1297,155.42,155.34,22.5308]
[1727362229837,6.4355,155.39,155.34,22.5308]
[1727362230036,6.437,155.36,155.31,22.5346]
[1727362230248,0.25098,155.39,155.28,35.08309953]
[1727362230452,6.4375,155.34,155.29,6.4395]
[1727362230748,6.4371,155.35,155.3,6.4391]
[1727362231069,6.4371,155.35,155.31,1.28746345]
[1727362231837,6.4371,155.35,155.3,6.4391]
[1727362232447,6.4371,155.35,155.28,51.18269953]
[1727362232651,24.027864,155.39,155.28,51.18269953]
[1727362232857,24.027864,155.39,155.29,1.28756213]
[1727362233050,24.027864,155.39,155.28,51.18269953]
[1727362233251,6.4379,155.33,155.28,57.62259953]
[1727362233458,24.027864,155.37,155.28,16.0996]
[1727362233659,0.12549,155.35,155.28,16.0996]
[1727362233970,6.4381,155.33,155.28,6.4396]
[1727362234378,6.4391,155.3,155.27,0.2956445]
[1727362234759,6.4387,155.31,155.27,0.2956445]
[1727362235061,6.4383,155.32,155.27,1.5834472]
[1727362235262,6.4383,155.32,155.27,17.6842472]
[1727362235469,6.4383,155.32,155.27,16.3964445]
[1727362235969,6.4383,155.32,155.28,1.28780242]
[1727362236173,6.4387,155.31,155.27,0.2956445]
[1727362236366,6.4391,155.3,155.27,0.2956445]
[1727362236750,6.4397,155.29,155.27,0.2956445]
[1727362236953,6.4399,155.28,155.27,0.2956445]
[1727362237157,6.4396,155.29,155.27,0.2956445]
[1727362237454,32.6773,155.33,155.27,0.2956445]
[1727362237668,6.4391,155.3,155.27,0.2956445]
[1727362238743,6.4387,155.31,155.27,0.2956445]
[1727362239077,32.6773,155.33,155.29,6.4395]
[1727362239257,12.658,155.36,155.3,1.28767116]
[1727362239971,6.4372,155.35,155.3,6.4391]
[1727362240271,6.4375,155.34,155.29,57.62059953]
[1727362240476,6.4375,155.34,155.29,51.18119953]
[1727362240776,6.4375,155.34,155.3,6.4391]
[1727362240979,31.6077,155.37,155.32,6.4382]
[1727362241161,6.4359,155.38,155.33,7.72508074]
[1727362241347,6.4359,155.38,155.34,6.4374]
[1727362241643,12.3123,155.4,155.33,1.28728074]
[1727362241644,18.7476,155.4,155.35,36.37038065]
[1727362241847,6.4355,155.39,155.35,36.37038065]
[1727362242654,18.7474,155.4,155.35,42.80728065]
[1727362242858,12.9667,155.44,155.35,52.46238065]
[1727362243158,6.4346,155.41,155.36,30.213384]
[1727362243363,12.9667,155.44,155.35,51.17509953]
[1727362243364,6.435,155.4,155.35,57.61199953]
[1727362244278,6.435,155.4,155.36,7.72353507]
[1727362244476,6.4346,155.41,155.36,7.72353507]
[1727362244649,12.9667,155.44,155.36,1.28703507]
[1727362244973,12.9667,155.44,155.38,35.08309953]
[1727362244974,6.4339,155.43,155.38,35.08309953]
[1727362245152,6.4339,155.43,155.39,1.28684382]
[1727362245350,6.4342,155.42,155.39,1.28684382]
[1727362245577,12.9667,155.44,155.35,35.08309953]
[1727362245773,6.4353,155.4,155.35,35.08309953]
[1727362246080,6.4355,155.39,155.35,41.51999953]
[1727362246253,6.4355,155.39,155.35,35.08309953]
[1727362246571,6.4348,155.41,155.36,6.4365]
[1727362247147,6.4348,155.41,155.35,36.37020895]
[1727362247148,29.0508,155.44,155.35,35.08309953]
[1727362247347,0.25098,155.43,155.34,16.0937]
[1727362247670,6.4356,155.39,155.35,7.7241278]
[1727362247852,6.4356,155.39,155.35,6.437]
[1727362248279,6.435,155.4,155.35,6.437]
[1727362248571,20.12549,155.43,155.35,6.437]
[1727362248763,6.4354,155.39,155.34,22.5311]
[1727362249762,29.0508,155.44,155.36,6.4365]
[1727362249976,6.4346,155.41,155.37,1.28697752]
[1727362250766,6.435,155.4,155.37,1.28697752]
[1727362250975,29.0508,155.44,155.37,7.72287752]
[1727362251489,29.0508,155.44,155.37,1.28697752]
[1727362251680,6.4349,155.41,155.37,1.28697752]
[1727362251968,29.0508,155.44,155.37,7.72317752]
[1727362252174,6.4342,155.42,155.38,6.4357]
[1727362252353,12.9667,155.44,155.37,6.4361]
[1727362252354,6.4346,155.41,155.37,6.4361]
[1727362252549,6.4342,155.42,155.37,6.4361]
[1727362252783,0.2956445,155.46,155.41,51.16919953]
[1727362253091,0.2956445,155.46,155.44,35.08309953]
[1727362253270,0.2956445,155.46,155.45,31.49609971]
[1727362253976,0.2956445,155.46,155.44,35.08309953]
[1727362254182,0.2956445,155.46,155.43,16.0834]
[1727362254358,0.2956445,155.46,155.42,6.4341]
[1727362254564,6.7281445,155.46,155.42,6.4341]
[1727362254761,6.7281445,155.46,155.41,41.51759953]
[1727362255167,0.2956445,155.46,155.42,31.49710353]
[1727362255370,0.2956445,155.46,155.42,41.14800353]
[1727362255787,0.2956445,155.46,155.42,39.861584]
[1727362255975,0.2956445,155.46,155.43,6.4334]
[1727362257186,0.2956445,155.46,155.44,7.7196385]
[1727362257567,0.1138566,155.48,155.47,37.2787]
[1727362257895,0.3715262,155.52,155.51,30.207284]
[1727362258183,0.3715262,155.52,155.51,31.49299193]
[1727362258385,0.3715262,155.52,155.5,51.15979953]
[1727362258595,0.3715262,155.52,155.51,1.28575677]
[1727362258883,0.3715262,155.52,155.51,31.49304077]
[1727362259094,0.3715262,155.52,155.5,57.59059953]
[1727362259459,0.3715262,155.52,155.47,82.00949953]
[1727362259656,0.3715262,155.52,155.51,30.332774]
[1727362259894,0.3715262,155.52,155.51,31.6183805]
[1727362260474,0.3715262,155.52,155.51,1.2856065]
[1727362261167,0.3715262,155.52,155.5,35.08309953]
[1727362261367,0.3715262,155.52,155.51,31.74401283]
[1727362261773,6.428,155.57,155.51,31.74401283]
[1727362261981,1.4095011,155.58,155.53,35.08309953]
[1727362262275,6.4305,155.51,155.47,35.08309953]
[1727362262480,6.4305,155.51,155.48,1.28604205]
[1727362262665,16.0699,155.57,155.47,35.08309953]
[1727362262867,6.4299,155.53,155.48,6.4316]
[1727362263078,1.0,155.56,155.47,35.08309953]
[1727362263282,62.155,155.55,155.47,1.28606009]
[1727362263487,6.4301,155.52,155.47,41.51479953]
[1727362263668,1.0,155.54,155.45,16.0814]
[1727362263872,0.12549,155.54,155.44,35.08309953]
[1727362264078,6.4316,155.48,155.44,35.08309953]
[1727362264466,16.0749,155.53,155.44,35.08309953]
[1727362264660,0.25098,155.54,155.41,35.08309953]
[1727362264661,6.4329,155.45,155.41,35.08309953]
[1727362265559,1.0,155.5,155.41,35.08309953]
[1727362265765,6.4333,155.44,155.39,22.5235]
[1727362265970,1.0,155.49,155.39,16.0882]
[1727362266185,12.9909,155.46,155.38,35.37874403]
[1727362266364,12.9909,155.46,155.38,0.2956445]
[1727362266365,43.7112,155.46,155.38,0.2956445]
[1727362266575,6.4349,155.41,155.38,0.2956445]
[1727362266798,6.4349,155.41,155.39,1.2869202]
[1727362267271,6.4354,155.39,155.38,0.2956445]
[1727362267466,6.4353,155.4,155.38,0.2956445]
[1727362267669,6.4354,155.39,155.38,0.2956445]
[1727362267888,1.0,155.44,155.38,0.2956445]
[1727362268079,16.0852,155.43,155.38,0.2956445]
[1727362268398,16.0852,155.43,155.38,4.45e-05]
[1727362268399,51.8569,155.39,155.38,4.45e-05]
[1727362268613,51.8569,155.39,155.32,0.2956445]
[1727362268614,6.4379,155.33,155.32,0.2956445]
[1727362269093,6.56339,155.33,155.32,0.2956445]
[1727362269389,30.465764,155.33,155.32,0.2956445]
[1727362269592,6.56339,155.33,155.32,0.2956445]
[1727362270168,50.465764,155.33,155.32,0.2956445]
[1727362270383,50.465764,155.33,155.32,0.1022691]
[1727362271390,50.340274,155.33,155.32,0.1022691]
[1727362271577,26.4379,155.33,155.32,0.1022691]
[1727362272085,6.4379,155.33,155.32,0.1022691]
[1727362272467,6.4373,155.35,155.32,0.1022691]
[1727362272665,45.4215,155.39,155.32,0.1022691]
[1727362273077,6.4371,155.35,155.32,0.1022691]
[1727362273471,6.4366,155.36,155.32,0.1022691]
[1727362273867,6.4364,155.37,155.32,0.1022691]
[1727362274071,6.4364,155.37,155.33,1.28745871]
[1727362275078,18.5592,155.39,155.33,6.4377]
[1727362275600,6.4349,155.41,155.34,36.37031344]
[1727362275800,6.4349,155.41,155.36,6.4366]
[1727362275975,42.9027,155.44,155.37,42.80615254]
[1727362276176,6.4337,155.43,155.37,42.80615254]
[1727362276381,6.4343,155.42,155.36,16.0916]
[1727362276580,6.4345,155.41,155.36,16.0916]
[1727362276885,6.4345,155.41,155.36,22.5282]
[1727362277098,6.4341,155.42,155.37,6.4361]
[1727362277281,12.1521,155.44,155.36,22.5278]
[1727362277477,1.0,155.43,155.36,16.0916]
[1727362277674,6.435,155.4,155.36,16.0916]
[1727362278188,6.435,155.4,155.36,16.0617]
[1727362278827,6.4346,155.41,155.37,1.28698783]
[1727362279101,6.4328,155.46,155.4,41.51799953]
[1727362279298,6.4328,155.46,155.41,7.7208709]
[1727362279493,6.4321,155.47,155.42,6.4341]
[1727362279676,6.4317,155.48,155.43,1.28646083]
[1727362280003,0.2092092,155.5,155.43,36.36956036]
[1727362280178,6.4313,155.49,155.43,36.36956036]
[1727362280507,6.4325,155.46,155.42,16.0844]
[1727362280879,0.2092092,155.5,155.42,16.0844]
[1727362281103,6.4324,155.47,155.43,1.28644109]
[1727362281898,6.4325,155.46,155.43,1.28644109]
[1727362282597,17.2864092,155.5,155.39,16.0884]
[1727362282790,17.2864092,155.5,155.4,23.776884]
[1727362282791,6.4334,155.44,155.4,23.776884]
[1727362283103,16.2864092,155.5,155.4,23.776884]
[1727362283301,16.08,155.48,155.36,16.0914]
[1727362283605,16.0823,155.46,155.36,16.0914]
[1727362283792,20.25098,155.45,155.36,16.0914]
[1727362283996,6.4351,155.4,155.36,16.0914]
[1727362284693,23.776884,155.44,155.32,93.70117644]
[1727362285005,6.4361,155.38,155.33,7.72490386]
[1727362285185,6.4354,155.39,155.34,6.4374]
[1727362285385,6.4354,155.39,155.35,1.28708105]
[1727362285583,6.436,155.38,155.34,0.1022691]
[1727362285782,1.12549,155.42,155.34,0.1022691]
[1727362285783,6.437,155.35,155.34,0.1022691]
[1727362285991,16.0865,155.41,155.34,0.1022691]
[1727362286198,1.0,155.4,155.34,0.1022691]
[1727362286511,6.4367,155.36,155.34,0.1022691]
[1727362286897,6.437,155.35,155.34,0.1022691]
[1727362287196,0.12549,155.42,155.34,0.1022691]
[1727362287403,0.12549,155.41,155.34,1.38954025]
[1727362287596,6.4368,155.36,155.34,0.1022691]
[1727362287805,0.12549,155.41,155.34,0.1022691]
[1727362288007,0.12549,155.42,155.34,0.1022691]
[1727362288199,20.0,155.43,155.35,56.91810734]
[1727362288398,6.4347,155.41,155.36,1.28694833]
[1727362288583,13.0371,155.44,155.36,1.28694833]
[1727362288789,6.4342,155.42,155.36,7.72354833]
[1727362289111,13.0371,155.44,155.38,56.91810734]
[1727362289409,61.1685,155.49,155.39,1.28673436]
[1727362289796,45.0903,155.49,155.4,16.0865]
[1727362290005,45.0903,155.49,155.41,1.28661011]
[1727362290178,12.1823,155.49,155.42,30.210984]
[1727362290389,6.4317,155.48,155.43,1.28642178]
[1727362290586,6.4322,155.47,155.42,30.210984]
[1727362290810,1.0,155.47,155.4,16.0865]
[1727362291110,6.433,155.45,155.4,16.0865]
[1727362291320,6.4335,155.44,155.39,6.4354]
[1727362291488,6.4335,155.44,155.37,0.12549]
[1727362291697,6.4335,155.44,155.38,6.4357]
[1727362291897,23.9860932,155.5,155.39,23.776884]
[1727362292088,20.0,155.49,155.41,30.211384]
[1727362292289,20.0,155.49,155.4,56.91810734]
[1727362292290,6.4331,155.45,155.4,56.91810734]
[1727362292483,6.4341,155.43,155.38,23.776884]
[1727362292706,6.435,155.4,155.36,56.91810734]
[1727362292919,6.4346,155.41,155.36,56.91810734]
[1727362293598,16.0815,155.46,155.36,56.91810734]
[1727362293803,36.0783,155.49,155.37,1.28687235]
[1727362294138,6.4333,155.44,155.39,62.35340734]
[1727362294422,0.2092092,155.5,155.41,22.5206]
[1727362294632,1.2092092,155.5,155.41,16.0864]
[1727362294797,6.433,155.45,155.41,16.0864]
[1727362295220,6.4325,155.46,155.41,22.5209]
[1727362295426,6.433,155.45,155.4,23.776884]
[1727362295918,6.433,155.45,155.4,30.211784]
[1727362296118,6.4333,155.44,155.39,63.35340734]
[1727362296425,0.12549,155.49,155.37,23.776884]
[1727362296426,20.12549,155.47,155.37,23.776884]
[1727362296603,6.4337,155.43,155.38,7.72261379]
[1727362296804,0.2092092,155.5,155.4,0.12549]
[1727362297005,0.2092092,155.5,155.39,81.98168557]
[1727362297006,6.4339,155.43,155.39,73.00570734]
[1727362297208,20.0,155.46,155.36,56.91810734]
[1727362297410,6.435,155.4,155.34,0.1022691]
[1727362297623,1.0,155.43,155.34,0.1022691]
[1727362297845,13.0331,155.44,155.34,1.3893153]
[1727362298127,13.0331,155.44,155.35,16.0919]
[1727362298304,6.4351,155.4,155.35,22.5289]
[1727362298826,6.4354,155.39,155.35,22.5289]
[1727362298999,6.437,155.35,155.34,0.1022691]
[1727362300102,20.25098,155.41,155.34,0.1022691]
[1727362300320,1.0,155.4,155.34,0.1022691]
[1727362300528,6.4367,155.36,155.34,0.1022691]
[1727362301123,6.437,155.35,155.34,0.1022691]
[1727362302111,20.0,155.41,155.34,0.1022691]
[1727362302304,50.0,155.45,155.37,56.91810734]
[1727362302305,16.0826,155.45,155.37,56.91810734]
[1727362302499,6.4334,155.44,155.39,6.4353]
[1727362302718,6.4341,155.42,155.37,63.35420734]
[1727362302926,31.4703,155.47,155.37,56.91810734]
[1727362303126,6.4352,155.4,155.37,56.91810734]
[1727362303332,16.082,155.46,155.37,56.91810734]
[1727362303503,6.4346,155.41,155.38,1.2869853]
[1727362304435,6.4349,155.41,155.38,1.2869853]
[1727362304725,6.4349,155.41,155.37,56.91810734]
[1727362305044,12.1798,155.48,155.4,56.91810734]
[1727362305333,12.1798,155.48,155.38,17.3758777]
[1727362305334,6.4345,155.42,155.38,16.0889]
[1727362305825,1.0,155.47,155.37,56.91810734]
[1727362306021,1.0,155.47,155.35,16.0922]
[1727362306022,16.0839,155.44,155.36,23.776884]
[1727362306829,1.0,155.43,155.36,23.776884]
[1727362307125,6.4342,155.42,155.37,16.0899]
[1727362307431,6.4346,155.41,155.37,22.5261]
[1727362307838,21.0,155.45,155.37,16.0899]
[1727362308038,21.0,155.45,155.34,101.36577644]
[1727362308039,6.4358,155.38,155.34,79.55097644]
[1727362308213,6.4358,155.38,155.34,16.1954691]
[1727362308540,6.4366,155.37,155.34,0.1022691]
[1727362309112,0.12549,155.4,155.34,0.1022691]
[1727362309323,6.437,155.35,155.34,0.1022691]
[1727362310432,50.464864,155.35,155.34,6.91e-05]
[1727362312743,51.464864,155.35,155.34,6.91e-05]
[1727362313524,26.68798,155.35,155.34,6.91e-05]
[1727362313730,26.437,155.35,155.34,6.91e-05]
[1727362314621,28.46,155.39,155.34,6.91e-05]
[1727362315134,6.437,155.35,155.34,6.91e-05]
[1727362316727,6.4367,155.36,155.34,6.91e-05]
[1727362316935,28.46,155.39,155.34,6.91e-05]
[1727362317131,6.437,155.35,155.34,6.91e-05]
[1727362318642,28.46,155.39,155.34,6.91e-05]
[1727362318643,6.4366,155.36,155.34,6.91e-05]
[1727362319221,12.371,155.39,155.34,6.91e-05]
[1727362319222,7.437,155.35,155.34,6.91e-05]
[1727362319427,6.437,155.35,155.34,6.91e-05]
[1727362319751,50.464864,155.35,155.34,6.91e-05]
[1727362320423,51.464864,155.35,155.34,6.91e-05]
[1727362322255,6.4391,155.3,155.29,0.38736]
[1727362322553,62.780564,155.3,155.29,6e-05]
[1727362322722,38.7527,155.3,155.29,6e-05]
[1727362323353,62.780564,155.3,155.29,6e-05]
[1727362323728,38.7527,155.3,155.29,6e-05]
[1727362324036,27.4391,155.3,155.29,6e-05]
[1727362324348,6.4391,155.3,155.29,6e-05]
[1727362324530,6.4387,155.31,155.29,6e-05]
[1727362324921,6.4383,155.32,155.29,6e-05]
[1727362325123,44.1768,155.38,155.29,58.20597952]
[1727362325323,44.1768,155.38,155.29,56.91816734]
[1727362325545,6.4374,155.34,155.3,6.439]
[1727362326556,1.0,155.37,155.29,6e-05]
[1727362326752,44.1768,155.38,155.29,6e-05]
[1727362327254,16.0918,155.36,155.29,6e-05]
[1727362327435,6.4387,155.32,155.29,6e-05]
[1727362328021,21.0,155.35,155.29,6e-05]
[1727362328222,0.25098,155.37,155.29,6e-05]
[1727362328652,6.4383,155.32,155.29,6e-05]
[1727362328841,6.4387,155.31,155.29,6e-05]
[1727362329241,7.4391,155.3,155.29,6e-05]
[1727362329651,6.4391,155.3,155.29,6e-05]
[1727362330852,1.0,155.32,155.23,16.1043]
[1727362331041,16.0954,155.33,155.25,0.1138566]
[1727362331042,6.4404,155.27,155.25,0.1138566]
[1727362331752,6.4399,155.28,155.25,0.1138566]
[1727362332051,6.4387,155.31,155.26,7.72863277]
[1727362332234,20.0,155.35,155.26,6.4407]
[1727362332235,6.4391,155.3,155.26,6.4407]
[1727362332749,20.0,155.33,155.25,23.8907406]
[1727362332929,6.4393,155.3,155.25,30.3315406]
[1727362333130,0.12549,155.35,155.25,0.1138566]
[1727362333437,0.12549,155.35,155.26,16.101]
[1727362333646,0.12549,155.33,155.25,0.1138566]
[1727362333950,6.439,155.31,155.26,6.4407]
[1727362334253,6.4385,155.32,155.27,23.82839576]
[1727362334429,1.0,155.33,155.27,16.1004]
[1727362334751,6.4388,155.31,155.27,16.1004]
[1727362335554,20.0,155.35,155.27,16.1004]
[1727362335729,20.0,155.35,155.27,22.5406]
[1727362335927,6.4404,155.27,155.25,57.03196394]
[1727362336149,6.4396,155.29,155.25,0.1138566]
[1727362336354,6.4406,155.27,155.25,0.1138566]
[1727362339158,1.0,155.31,155.25,16.2163566]
[1727362339365,6.4379,155.33,155.28,6.4396]
[1727362339662,6.4383,155.32,155.29,1.28779342]
[1727362339970,16.0932,155.35,155.28,0.15662275]
[1727362340130,16.0952,155.33,155.28,0.15662275]
[1727362340336,49.0387,155.29,155.28,2.275e-05]
[1727362340652,93.066564,155.29,155.28,2.275e-05]
[1727362341660,69.28968,155.29,155.28,2.275e-05]
[1727362341869,93.066564,155.29,155.28,2.275e-05]
[1727362342050,94.066564,155.29,155.28,2.275e-05]
[1727362342440,94.066564,155.29,155.25,0.1138566]
[1727362342441,26.69178,155.26,155.25,0.1138566]
[1727362342756,51.468664,155.26,155.25,5.66e-05]
[1727362343334,50.468664,155.26,155.25,5.66e-05]
[1727362344142,51.468664,155.26,155.25,5.66e-05]
[1727362345735,50.468664,155.26,155.25,5.66e-05]
[1727362346645,6.56629,155.26,155.25,5.66e-05]
[1727362346843,6.4408,155.26,155.25,5.66e-05]
[1727362348456,6.4405,155.27,155.25,5.66e-05]
[1727362348760,110.90366349,155.33,155.25,5.66e-05]
[1727362348761,6.4408,155.26,155.25,5.66e-05]
[1727362350351,6.69178,155.26,155.25,5.66e-05]
[1727362351346,26.69178,155.26,155.25,5.66e-05]
[1727362352259,26.4408,155.26,155.25,5.66e-05]
[1727362352958,20.0,155.25,155.23,6.98e-05]
[1727362353166,27.4416,155.24,155.23,6.98e-05]
[1727362353486,51.469464,155.24,155.23,6.98e-05]
[1727362354166,45.027864,155.24,155.2,0.07589345]
[1727362354344,26.69378,155.21,155.2,0.07589345]
[1727362354548,51.470664,155.21,155.2,0.07589345]
[1727362355371,50.470664,155.21,155.2,0.07589345]
[1727362356157,51.470664,155.21,155.2,0.07589345]
[1727362356648,50.470664,155.21,155.2,0.07589345]
[1727362356846,101.470664,155.21,155.2,9.345e-05]
[1727362357348,51.470664,155.21,155.2,9.345e-05]
[1727362358269,101.470664,155.21,155.2,9.345e-05]
[1727362358648,51.470664,155.21,155.2,9.345e-05]
[1727362359167,101.470664,155.21,155.2,9.345e-05]
[1727362359546,101.470664,155.21,155.18,0.2544132]
[1727362359547,44.027864,155.2,155.18,0.2544132]
[1727362359898,44.027864,155.2,155.16,0.1138566]
[1727362359899,50.472364,155.17,155.16,0.1138566]
[1727362360043,51.472364,155.17,155.16,0.1138566]
[1727362360246,101.472364,155.17,155.16,5.66e-05]
[1727362360485,101.472364,155.17,155.11,0.0758817]
[1727362360486,44.027864,155.16,155.13,9.22e-05]
[1727362360768,50.473564,155.14,155.13,9.22e-05]
[1727362360956,26.69668,155.14,155.13,9.22e-05]
[1727362361343,50.473564,155.14,155.13,9.22e-05]
[1727362361543,51.473564,155.14,155.13,9.22e-05]
[1727362361852,50.473564,155.14,155.13,9.22e-05]
[1727362362457,26.69668,155.14,155.13,9.22e-05]
[1727362364747,26.4457,155.14,155.13,9.22e-05]
[1727362366484,26.57119,155.14,155.13,9.22e-05]
[1727362366664,26.69668,155.14,155.13,9.22e-05]
[1727362367659,26.57119,155.14,155.13,9.22e-05]
[1727362368555,50.473564,155.14,155.13,9.22e-05]
[1727362368966,50.473564,155.14,155.11,0.0758817]
[1727362368967,50.474464,155.12,155.11,7.39e-05]